Cogmind - Beta 14 @@@ ROGUE MODE // 2024.10.18 @ 06:30:19 Player: WazdakkaGutsmek Result: Destroyed by 81-AW3(R) with Subdweller Laser Performance ------------- Evolutions (0) 0 Regions Visited (2) 400 Robots Destroyed (31) 155 Value Destroyed (672) 672 Prototype IDs (11) 220 Alien Tech Used (0) 0 Bonus (0) 0 TOTAL SCORE: 1447 Bonus ------- None Cogmind --------- Core Integrity 0/250 Matter 295/300 Energy 180/180 System Corruption 0% Temperature Cool (6) Movement Treading (160) Location -10/Subcaves Parts ------- > --- POWER (1) -------- Meta Core > --- PROPULSION (2) --- Light Treads Light Treads > --- UTILITY (2+1) ---- Structural Scanner > --- WEAPON (2+1) ----- Makeshift Spear > --- INVENTORY (5) ---- Medium Armor Plating Medium Armor Plating Authchip [R/Combat] Particle Gun Barrage Gun Peak State ------------ > --- POWER ------------ Meta Core > --- PROPULSION ------- Light Treads Light Treads Wheel > --- UTILITY ---------- Scrap Shield > --- WEAPON ----------- Subdweller Laser Makeshift Spear > --- INVENTORY -------- Medium Armor Plating Medium Armor Plating Authchip [R/Combat] Particle Gun Barrage Gun [Rating: 27] Favorites ----------- Power Light Nuclear Core Engine Subdweller Power Source Power Core Light Nuclear Core Propulsion Light Treads Treads Light Treads Leg Aluminum Leg Wheel Wheel Utility Small Storage Unit Device Structural Scanner Storage Small Storage Unit Protection Scrap Shield Weapon Particle Gun Energy Gun Particle Gun Ballistic Gun Subdweller Machine Gun Ballistic Cannon Battle Cannon Piercing Weapon Makeshift Spear Build | -11 -10 -10 ------- Run | Yrd Mat Sub Slots Evolved . | . . . Power . | . . . Propulsion . | . . . Utility . | . . . Weapon . | . . . Parts Attached 29 | . 12 17 Power 5 | . 2 3 Engine 3 | . 1 2 Core 2 | . 1 1 Reactor . | . . . Propulsion 4 | . 1 3 Treads 2 | . . 2 Leg 1 | . 1 . Wheel 1 | . . 1 Hover . | . . . Flight . | . . . Utility 10 | . 6 4 Device 9 | . 6 3 Storage . | . . . Processor . | . . . Hackware . | . . . Protection 1 | . . 1 Artifact . | . . . Weapon 10 | . 3 7 Energy Gun 7 | . 3 4 Energy Cannon . | . . . Ballistic Gun 1 | . . 1 Ballistic Cannon 1 | . . 1 Launcher . | . . . Special Weapon . | . . . Impact Weapon . | . . . Slashing Weapon . | . . . Piercing Weapon 1 | . . 1 Special Melee Weapon . | . . . Unidentified Prototypes . | . . . Parts Lost 5 | . . 5 Power 1 | . . 1 Propulsion 1 | . . 1 Utility . | . . . Weapon 3 | . . 3 Highest Loss Streak 3 | . . 3 To Critical Strikes . | . . . Average Slot Usage (%) 86 | . 99 78 Engine 5 | . 4 6 Core 5 | . 9 3 Treads 13 | . . 21 Leg 12 | . 27 2 Device 8 | . 13 5 Storage 9 | . 14 6 Protection 3 | . . 6 Energy Gun 20 | . 27 15 Ballistic Cannon 1 | . . 3 Piercing Weapon 2 | . . 4 Peak Build Rating 27 | . 13 27 Average Rating 13 | . 11 15 On Entrance 8 | 6 6 12 Naked Turns . | . . . Heaviest Build 30 | 12 17 30 Greatest Support 40 | 20 20 40 Greatest Overweight (x) 1 | . 1 1 Average Overweight (x) . | . . . Largest Inventory Capacity 8 | . 8 8 Average Capacity 7 | . 8 6 Most Carried 8 | . 8 8 Average Carried 6 | . 7 5 Final Capacity 8 | 8 8 5 Final Carried 8 | 6 8 5 Class Distribution -------------------- 83% | Mutant 16% | Subdweller-Mutant Dominant Class ---------------- Mutant | -10/Materials Mutant | -10/Subcaves Resources | -11 -10 -10 ----------- Run | Yrd Mat Sub Matter Collected 644 | 200 192 252 Remotely . | . . . Salvage Created 861 | . 469 392 Parts 48 | . 26 22 Haulers Intercepted 2 | . 2 . Recyclers Shooed . | . . . Parts Field Recycled . | . . . Retrieved Matter . | . . . Parts Self-Destructed 21 | . . 21 Prevented . | . . . Kills | -11 -10 -10 ------- Run | Yrd Mat Sub Combat Hostiles Destroyed 20 | . 10 10 Melee 1 | . . 1 Guns 17 | . 10 7 Cannons 2 | . . 2 Classes Destroyed 8 | . 5 3 Tunneler 4 | . 4 . Hauler 2 | . 2 . Turret 2 | . . 2 Watcher 3 | . 3 . Swarmer 9 | . 6 3 Grunt 4 | . 4 . Cobbler 1 | . . 1 Subdweller 7 | . . 7 Best Kill Streak 3 | . 3 2 Combat Bots Only 3 | . 3 1 Max Kills in Single Turn 1 | . 1 1 Gunslinging . | . . . Exploded . | . . . Melee 1 | . . 1 Uniques/NPCs Destroyed . | . . . Combat | -11 -10 -10 -------- Run | Yrd Mat Sub Hostile Shots Fired 153 | . 36 117 Missed 61 | . 12 49 Damage Taken 1222 | . 278 944 Core 260 | . 80 180 Absorbed by Shields . | . . . Core Remaining (%) 100 | 100 . . Volleys Fired 114 | . 51 63 Largest 2 | . 2 2 Hottest 130 | . 130 130 Shots Fired 200 | . 97 103 Gun 182 | . 97 85 Cannon 18 | . . 18 Launcher . | . . . Special . | . . . Kinetic 24 | . . 24 Thermal 176 | . 97 79 Explosive . | . . . Electromagnetic . | . . . Robot Hit Streak 13 | . 10 13 Robot Miss Streak 9 | . 6 9 Penetration Max . | . . . Secondary Targets 1 | . 1 . Max Gunslinging Chain 1 | . 1 . Shots Hit Robots 119 | . 56 63 Core Hits 44 | . 24 20 Critical Kills . | . . . Critical Parts Destroyed . | . . . Critical Strikes 3 | . 1 2 Burn 3 | . 1 2 Melee Attacks 16 | . . 16 Impact . | . . . Slashing . | . . . Piercing 16 | . . 16 Sneak Attacks 1 | . . 1 Combat Hostiles . | . . . Follow-up Attacks . | . . . Damage Inflicted 2042 | . 863 1179 Guns 1714 | . 863 851 Cannons 113 | . . 113 Explosions . | . . . Melee 215 | . . 215 Ramming . | . . . Kinetic 206 | . . 206 Thermal 1621 | . 863 758 Explosive . | . . . Electromagnetic . | . . . Impact . | . . . Slashing . | . . . Piercing 215 | . . 215 Highest Corruption . | . . . Average Corruption . | . . . Corruption Purged . | . . . Corruption Blocked . | . . . Overload Shots . | . . . Overflow Damage . | . . . Projectiles . | . . . Explosions . | . . . Melee . | . . . Knockbacks . | . . . Impact . | . . . Kinetic . | . . . Secondary . | . . . Self-Inflicted Damage . | . . . Shots . | . . . Rammed . | . . . Targets Rammed . | . . . Kicked . | . . . Crushed . | . . . Highest Temperature 542 | . 542 65 Average Temperature 112 | . 132 23 Received Heat Transfer 255 | . 81 174 Effects 7 | . 7 . Shutdowns 2 | . 2 . Energy Bleed 1 | . 1 . Interference 2 | . 2 . Matter Decay 1 | . 1 . Damage (core) 1 | . 1 . Siege Activations . | . . . Robots Corrupted . | . . . Combat Hostiles . | . . . Parts Fried . | . . . Impact Corruptions . | . . . Robots Melted . | . . . Combat Hostiles . | . . . Parts Melted 4 | . 4 . Heat Transferred 3693 | . 2146 1547 Parts Sabotaged . | . . . Parts Stolen . | . . . Parts Stripped . | . . . Power Chain Reactions . | . . . Alert | -11 -10 -10 ------- Run | Yrd Mat Sub Peak Influence 131 | . 131 . Initial . | . . . Average 36 | . 36 . Maximum Alert Level . | . . . Low Security (%) 100 | . 100 . Level 1 . | . . . Level 2 . | . . . Level 3 . | . . . Level 4 . | . . . Level 5 . | . . . High Security . | . . . Max Security . | . . . Squads Dispatched . | . . . Investigation . | . . . Extermination . | . . . Reinforcement . | . . . Assault . | . . . Garrison . | . . . Intercept . | . . . Searches Triggered . | . . . Construction Impeded . | . . . Haulers Reinforced . | . . . Active Scanning Responses . | . . . Cargo Convoy Interrupts . | . . . Stealth | -11 -10 -10 --------- Run | Yrd Mat Sub Distress Signals 1 | . 1 . Communications Jammed . | . . . Distress Signals . | . . . Times Spotted 38 | . 18 20 Peak Tracking Total 5 | . 4 5 Tactical Retreats 7 | . 2 5 Traps | -11 -10 -10 ------- Run | Yrd Mat Sub Traps Triggered 4 | . 1 3 Indirectly . | . . . Trap Hack Attempts . | . . . Triggered . | . . . Disarmed . | . . . Reprogrammed . | . . . Reused . | . . . Traps Extracted . | . . . Installed . | . . . Triggered 1 | . . 1 Machines | -11 -10 -10 ---------- Run | Yrd Mat Sub Machines Disabled 3 | . . 3 Max in Single Turn 1 | . . 1 Machines Repaired . | . . . Machines Dismantled . | . . . Machines Sabotaged . | . . . Overloaded Fab Kills . | . . . Hacking | -11 -10 -10 --------- Run | Yrd Mat Sub Machines Accessed 13 | . 9 4 Terminals 7 | . 7 . Fabricators . | . . . Repair Stations . | . . . Recycling Units 2 | . 2 . Scanalyzers . | . . . Garrison Access . | . . . Total Hacks 26 | . 17 9 Successful 18 | . 9 9 Failed 8 | . 8 . Catastrophic 1 | . 1 . Database Lockouts . | . . . Manual 11 | . 11 . Terminals 15 | . 15 . Fabricators . | . . . Repair Stations . | . . . Recycling Units 2 | . 2 . Scanalyzers . | . . . Garrison Access . | . . . Terminal Hacks 14 | . 5 9 Record 7 | . 1 6 Open Door 1 | . . 1 Branch Access Points 1 | . 1 . Unreport Threat 1 | . 1 . Hauler Manifests 1 | . 1 . Zone Layout 1 | . 1 . Derelict Proto ID Bank 1 | . . 1 Release Object 1 | . . 1 Fabricator Hacks . | . . . Repair Station Hacks . | . . . Recycling Unit Hacks 2 | . 2 . Retrieve Components 2 | . 2 . Scanalyzer . | . . . Garrison Access Hacks . | . . . Unauthorized Hacks 2 | . 2 . Terminals 2 | . 2 . Botnet 2 | . 2 . Fabricators . | . . . Repair Stations . | . . . Recycling Units . | . . . Scanalyzers . | . . . Garrison Access . | . . . Data Cores Recovered . | . . . Used . | . . . Hacking Detections 5 | . 5 . Full Trace Events . | . . . Feedback Events . | . . . Feedback Blocked . | . . . Robot Schematics Acquired . | . . . Robots Built . | . . . Authchips . | . . . Time . | . . . Total Robot Build Rating . | . . . Part Schematics Acquired . | . . . Parts Built . | . . . Authchips . | . . . Time . | . . . Total Part Build Rating . | . . . Parts Repaired . | . . . Time . | . . . Parts Recycled . | . . . Recycled Matter . | . . . Retrieved Matter . | . . . Retrieved Components 10 | . 10 . Parts Scanalyzed . | . . . Part Schematics Acquired . | . . . Parts Damaged . | . . . Bothacking | -11 -10 -10 ------------ Run | Yrd Mat Sub Used RIF Installer . | . . . Robots Hacked . | . . . Non-combat . | . . . Combat . | . . . Robot Hacks Applied . | . . . Relay Couplers Released . | . . . Fabnet Peak Effective % . | . . . Robots Rewired . | . . . Allies Hacked . | . . . Hacks Repelled . | . . . Allies | -11 -10 -10 -------- Run | Yrd Mat Sub Total Allies . | . . . Largest Group . | . . . Highest-Rated Group . | . . . Highest-Rated Ally . | . . . Total Orders . | . . . Ally Attacks . | . . . Total Damage . | . . . Kills . | . . . Allies Corrupted . | . . . Allies Melted . | . . . Intel | -11 -10 -10 ------- Run | Yrd Mat Sub Robot Analysis Total . | . . . Derelict Logs Recovered 2 | . . 2 Drone Launches . | . . . Drone Recoveries . | . . . Exploration | -11 -10 -10 ------------- Run | Yrd Mat Sub Turns Passed 4866 | . 1909 2957 Spaces Moved 2773 | 1 1151 1621 Core . | . . . Treads 1361 | . . 1361 Legs 1412 | 1 1151 260 Wheels . | . . . Hover . | . . . Flight . | . . . Fastest Speed 120 | 120 120 120 Average Speed 143 | 120 120 160 Slowest Speed 190 | 120 190 190 Overloaded Moves . | . . . Propulsion Burnouts . | . . . Robots Hopped . | . . . Cave-ins Triggered . | . . . Exploration Rate (%) 58 | 2 99 73 Regions Visited 2 Branch Regions 1 Pre-discovered Areas 3 | . . 3 Known Exits Taken . | . . . Unknown Exits Taken 2 | 1 1 . Scrap Searched . | . . . Spaces Dug . | . . . Terrain Destroyed 1 | . . 1 Melee . | . . . Projectile 1 | . . 1 AOE . | . . . Terrain Rammed . | . . . Walls Destroyed . | . . . Machines Disabled . | . . . Actions | -11 -10 -10 --------- Run | Yrd Mat Sub Total 3434 | . 1581 1853 Wait 459 | . 351 108 Move 2771 | . 1150 1621 Hop . | . . . Pick Up 11 | . 5 6 Fast Attach 16 | . 7 9 Attach 12 | . 4 8 Detach 7 | . 4 3 Swap 1 | . 1 . Drop 23 | . 8 15 Fire 114 | . 51 63 Melee 16 | . . 16 Ram . | . . . Kick . | . . . Crush . | . . . Escape Stasis . | . . . Rewire . | . . . Trap . | . . . Miscellaneous 4 | . . 4 Route ------- -11/Scrapyard -10/Materials (discovered 6 exits: [*Mat x3] / *Min x2 / *Sub) -10/Subcaves (discovered 3 exits: [*Mat x2] / [*Rec]) History --------- Turn | Location | Event 1 | -11/Scrapyard | Discovered new exit (range 0) 1 | -11/Scrapyard | Entered Materials 130 | -10/Materials | Discovered new exit (range 14) 306 | -10/Materials | Build established: Mutant 433 | -10/Materials | Identified exit to Mines 487 | -10/Materials | Discovered new exit (range 5) 757 | -10/Materials | Discovered new exit (range 17) 769 | -10/Materials | Discovered new exit (range 9) 865 | -10/Materials | Discovered new exit (range 6) 1910 | -10/Materials | Entered Subcaves 2116 | -10/Subcaves | Lost 3 parts (1p1n1w) 2258 | -10/Subcaves | Shifting Twisted Machinery released Battle Cannon 2377 | -10/Subcaves | Discovered new exit (range 4) 2379 | -10/Subcaves | Learned Materials emergency access door positions 2421 | -10/Subcaves | Released subatomizers from SUBCON Basin 2499 | -10/Subcaves | Shifting Twisted Machinery released Sub. Optics 2502 | -10/Subcaves | Shifting Twisted Machinery released Sub. Machine Gun 2669 | -10/Subcaves | Learned location of Zion (-6) 2731 | -10/Subcaves | Met a Zionite searching for "candidates" 2763 | -10/Subcaves | A swath of the cavern ceiling suddenly collapsed 2805 | -10/Subcaves | Discovered new exit (range 8) 2840 | -10/Subcaves | Core integrity fell below 50% 3011 | -10/Subcaves | Shifting Twisted Machinery released Mak. Spear 3200 | -10/Subcaves | Discovered new exit (range 14) 3556 | -10/Subcaves | A swath of the cavern ceiling suddenly collapsed 3564 | -10/Subcaves | Build established: Subdweller-Mutant 3924 | -10/Subcaves | Shifting Twisted Machinery released Shrapnel Trap 3937 | -10/Subcaves | Shifting Twisted Machinery released Sub. Laser 4106 | -10/Subcaves | Visited 4L-MR0's lab 4129 | -10/Subcaves | Found Meta Core 4130 | -10/Subcaves | Attached Meta Core, gained temporary slots: Propulsion, Utility, Weapon 4335 | -10/Subcaves | Visited Clippyterm 4340 | -10/Subcaves | Build established: Mutant 4340 | -10/Subcaves | Learned Factory garrison access intel 4340 | -10/Subcaves | Learned location of Deep Caves (-6) 4429 | -10/Subcaves | Core integrity fell below 20% 4867 | -10/Subcaves | Destroyed by 81-AW3(R) with Subdweller Laser Last Messages --------------- 04396_ Sneak attack on RI-CCN(O). 04396_ RI-CCN(O) cries out in pain. 04396_ RI-CCN(O) destroyed. 04398_ Acquired 30 matter. 04402_ Dropped Sub. Machine Gun. 04402_ Acquired Barrage Gun. 04406_ Acquired Wheel. 04408_ Dropped Wheel. 04408_ Temporary Propulsion slot lost. 04417_ 8I-GT8(R): "SUBMAD!" 04432_ 8I-GT8(R) destroyed. 04435_ Scrap Shield Fragment affixed to Scrap Shield (+45). 04436_ Acquired 10 matter. 04440_ Scrap Shield Fragment affixed to Scrap Shield (+44). 04458_ 34-W2Y(u) tweaks Twisted Machinery. 04783_ Dropped Scrap Shield. 04784_ Acquired Structural Scanner. 04863_ Sub. Laser destroyed. Map ----- +----------------------------------------------------+ | | | | | | | | | | | | | | | | | | | | | | | ?????????????????????????????????????????????????? | | ?????????????????????????????????????????????????? | | ?????????????????????????????????????????????????? | | ?????????????????????????#########???????????????? | | ??????????????????????############???????????????? | | ?????????????????????#####< << #####????????????? | | ?????????????????????###<< ??###????????????? | | ????????????????????### ??? ###???????????? | | ????????????????????###< $$ ??? ###???????????? | | ????????????????????##< $# ?? ##???????????? | | ????????????????????##< < $ ?? "##???????????? | | ????????????????????##< < "##???????????? | | ????????????????????##< #####^ <##???????????? | | ????????????????????###< # <<##???????????? | | ?????????????????????## R@ ##"?###???????????? | | ?????????????????????###<< ## <#########????????? | | ???????????????###??? ######" #########????????? | | ???????????????## ### " ## ##??????### | | ???????????????## ###?????#### | | ???????????????## ## ###??????### | | ???????????????#### ##### ###???##### | | ???????????????##### ###### ##???###### | | ?????????????????#### ##### ##??#### | | ??????????????????### #### ##?#### | | ???????????????????### ?### ###### | | ???????????????????### #### ##### | | ????????????????????### ### ?## #### [ | | ???????????????###??####### ##### ##### | | ??????????????## ####### ## # ## ##### | | ??????????????# # ###### ###### | | ??????????????# # ########### | | ???????????????# # # ### | | ??????????????## | | ??????????????# | | ??????????????# ## ## | | ??????????????# ## ######## | | ??????????????## #### ####??### | | ?????????????### ##### #####????### | | ??????????#??# #" # ##??????# ## | +----------------------------------------------------+ Best States ------------- Heat Dissipation 25 Coolant Potential 50 Energy Generation 17 Energy Capacity 250 Matter Stores 300 Matter Capacity 300 Sight Range 16 Terrain Scan Density 10 Armor Coverage 800 Evasion (%) 55 Recoil Reduction 2 Authchip Count 1 Item Schematics ----------------- None Robot Schematics ------------------ None Fabricated ------------ Nothing Alien Tech Used ----------------- None Achievements -------------- None Challenges ------------ None Game ------ Seed LightningDefenseMeganuke Manual? 0 Play Time 00:31:54 Cumulative 35.8 hours Start 2024.10.18 @ 05:58:04 End 2024.10.18 @ 06:30:19 Sessions 1 Manual Loads 0 Difficulty Rogue Special Mode None Game No. 38 Rogue 20 Adventurer 16 Explorer 2 Win Type - Total 1 Types 1/0/0/0/0/0/0/0/0 Lore% 10 Gallery% 35 Achievement% 33 Wizard Run 0 Options --------- Layout 2 ASCII 0 Keyboard 0 Movement Mouse Keybinds 1 Fullscreen 2 Font 24/Terminus Map View 50x44 Zoom Use 0% Tactical HUD 1 Map Filters NONE Filters NONE Steam 1 RUN: 52113814-687e-4a08-988f-05e7f491beca